bitfinex-derivatives/quotes_BTCF0:USTF0_20250711
["timestamp","ask_amount","ask_price","bid_price","bid_amount"]
[1752233131829,0.29936024,117730.0,117720.0,1.33784427]
[1752233132129,0.36076024,117730.0,117720.0,1.33784427]
[1752233133023,0.36076024,117730.0,117720.0,0.33898897]
[1752233133328,0.72443554,117730.0,117720.0,0.33898897]
[1752233133529,0.36076024,117730.0,117720.0,0.33898897]
[1752233135329,0.30012638,117730.0,117720.0,0.33898897]
[1752233137238,0.36076024,117730.0,117720.0,0.33898897]
[1752233137534,0.66380168,117730.0,117720.0,0.33898897]
[1752233138726,1.26600168,117730.0,117720.0,0.16915327]
[1752233138934,1.32663554,117730.0,117720.0,0.16915327]
[1752233139935,1.26600168,117730.0,117720.0,0.16915327]
[1752233141633,1.3417441,117730.0,117720.0,0.16915327]
[1752233142534,1.26600168,117730.0,117720.0,0.16915327]
[1752233143432,1.26600168,117730.0,117720.0,0.16615327]
[1752233143733,1.26600168,117730.0,117720.0,0.16815327]
[1752233144127,1.3417441,117730.0,117720.0,0.16815327]
[1752233144430,1.26600168,117730.0,117720.0,0.16815327]
[1752233144832,1.3417441,117730.0,117720.0,0.16815327]
[1752233146031,1.26600168,117730.0,117720.0,0.16815327]
[1752233146432,1.3417441,117730.0,117720.0,0.16815327]
[1752233149232,1.26600168,117730.0,117720.0,0.16815327]
[1752233149830,1.34173659,117730.0,117720.0,0.16815327]
[1752233151033,1.34173659,117730.0,117720.0,0.16615327]
[1752233151233,1.34273659,117730.0,117720.0,0.16615327]
[1752233151832,1.26700168,117730.0,117720.0,0.16615327]
[1752233152237,1.3731958,117730.0,117720.0,0.16615327]
[1752233154734,1.3731958,117730.0,117720.0,0.16315327]
[1752233155734,0.84662318,117730.0,117720.0,0.16315327]
[1752233155935,0.48294788,117730.0,117720.0,0.52682857]
[1752233156136,0.4073205,117730.0,117720.0,0.69666427]
[1752233156437,0.84176638,117730.0,117720.0,0.69666427]
[1752233156627,0.90227375,117730.0,117720.0,0.76036427]
[1752233157533,0.90227375,117730.0,117720.0,0.39668897]
[1752233158138,0.90127375,117730.0,117720.0,0.39668897]
[1752233159135,0.90227375,117730.0,117720.0,0.39768897]
[1752233159629,0.93327375,117730.0,117720.0,0.39768897]
[1752233160837,0.93327375,117730.0,117720.0,0.22785327]
[1752233161038,0.93319375,117730.0,117720.0,0.19635327]
[1752233161234,0.93219375,117730.0,117720.0,0.19635327]
[1752233161435,0.93219375,117730.0,117720.0,0.19735327]
[1752233161838,0.93219375,117730.0,117720.0,0.36718897]
[1752233166941,0.93219375,117730.0,117720.0,0.19735327]
[1752233167241,0.87168638,117730.0,117720.0,0.19735327]
[1752233167433,0.87168638,117730.0,117720.0,0.36718897]
[1752233167632,0.93219375,117730.0,117720.0,0.36718897]
[1752233169444,1.29586905,117730.0,117720.0,0.36718897]
[1752233169944,0.93219375,117730.0,117720.0,0.36718897]
[1752233170738,1.23536168,117730.0,117720.0,0.36718897]
[1752233170942,0.87168638,117730.0,117720.0,0.36718897]
[1752233171144,0.87168638,117730.0,117720.0,0.19735327]
[1752233171638,1.23536168,117730.0,117720.0,0.19735327]
[1752233171943,1.29586905,117730.0,117720.0,0.19735327]
[1752233173143,1.32896905,117730.0,117720.0,0.19735327]
[1752233173843,1.32896905,117730.0,117720.0,0.16515327]
[1752233175239,1.26846168,117730.0,117720.0,0.16515327]
[1752233175441,1.34409089,117730.0,117720.0,0.16515327]
[1752233175945,1.34409089,117730.0,117720.0,0.33498897]
[1752233177346,1.34409089,117730.0,117720.0,0.16515327]
[1752233178649,1.26846168,117730.0,117720.0,0.16515327]
[1752233178850,0.66650168,117730.0,117720.0,0.16515327]
[1752233179050,1.34377089,117730.0,117720.0,0.16515327]
[1752233179550,1.26814168,117730.0,117720.0,0.16515327]
[1752233180852,1.32871134,117730.0,117720.0,0.16515327]
[1752233183051,0.72707134,117730.0,117720.0,0.33498897]
[1752233183358,1.32863134,117730.0,117720.0,0.16515327]
[1752233185463,1.34369089,117730.0,117720.0,0.16515327]
[1752233186555,1.26806168,117730.0,117720.0,0.16515327]
[1752233187162,0.66650168,117730.0,117720.0,0.16515327]
[1752233187465,1.26798168,117730.0,117720.0,0.16515327]
[1752233190070,1.32864002,117730.0,117720.0,0.16515327]
[1752233190771,0.96496472,117730.0,117720.0,0.16515327]
[1752233190972,1.32864002,117730.0,117720.0,0.16515327]
[1752233191473,1.34361089,117730.0,117720.0,0.16515327]
[1752233191673,0.80281055,117730.0,117720.0,0.33498897]
[1752233191872,1.32850134,117730.0,117720.0,0.16515327]
[1752233192773,1.31353842,117730.0,117720.0,0.57454531]
[1752233193171,1.41973254,117730.0,117720.0,0.57454531]
[1752233193369,1.49558369,117730.0,117720.0,0.16515327]
[1752233193569,1.38938957,117730.0,117720.0,0.57454531]
[1752233194269,0.97999753,117730.0,117720.0,0.16515327]
[1752233194475,1.38938957,117730.0,117720.0,0.16515327]
[1752233196277,1.38926957,117730.0,117720.0,0.74438101]
[1752233196465,1.31341842,117730.0,117720.0,0.74438101]
[1752233196769,0.90402638,117730.0,117720.0,0.16515327]
[1752233197074,0.97987753,117730.0,117720.0,0.33498897]
[1752233197573,0.30282638,117730.0,117720.0,0.33498897]
[1752233197875,0.97984747,117730.0,117720.0,0.33498897]
[1752233198074,0.90398638,117730.0,117720.0,0.33498897]
[1752233198375,1.26787236,117730.0,117720.0,0.33498897]
[1752233198575,0.74257366,117730.0,117720.0,0.33498897]
[1752233198776,1.34369366,117730.0,117720.0,0.33498897]
[1752233199375,1.26783236,117730.0,117720.0,0.33498897]
[1752233201677,0.90394638,117730.0,117720.0,0.33498897]
[1752233201879,1.26783236,117730.0,117720.0,0.33498897]
[1752233202879,1.34369366,117730.0,117720.0,0.33498897]
[1752233207085,0.97980768,117730.0,117720.0,0.33498897]
[1752233207480,0.94646768,117730.0,117720.0,0.69887495]
[1752233207783,0.87060638,117730.0,117720.0,0.75937495]
[1752233207981,0.06890508,117730.0,117720.0,0.75937495]
[1752233208285,0.12959683,117730.0,117720.0,0.75937495]
[1752233208679,0.29941813,117730.0,117720.0,0.39548897]
[1752233208881,0.29941813,117730.0,117720.0,0.75937495]
[1752233214191,0.29941813,117730.0,117720.0,0.39548897]
[1752233214387,0.29941813,117730.0,117720.0,0.75937495]
[1752233215188,0.12959683,117730.0,117720.0,0.75937495]
[1752233215487,0.23872638,117730.0,117720.0,0.75937495]
[1752233215683,0.29941813,117730.0,117720.0,0.75937495]
[1752233215886,0.12959683,117730.0,117720.0,0.75937495]
[1752233216095,0.06890508,117730.0,117720.0,0.75937495]
[1752233216494,0.06890508,117730.0,117720.0,0.76796287]
[1752233217396,0.23872638,117730.0,117720.0,0.76796287]
[1752233218892,0.23872638,117730.0,117720.0,1.22263835]
[1752233220190,0.06890508,117730.0,117720.0,1.22263835]
[1752233222891,0.07861507,117750.0,117740.0,0.1698069]
[1752233223089,0.09378462,117750.0,117740.0,1.17948763]
[1752233223290,0.07852839,117750.0,117740.0,1.24338763]
[1752233223597,0.01792332,117750.0,117740.0,1.24338763]
[1752233223799,0.788159,117760.0,117750.0,0.1697925]
[1752233223993,0.788159,117760.0,117750.0,0.57807323]
[1752233224898,0.37887827,117760.0,117750.0,0.1667925]
[1752233225298,0.37887827,117760.0,117750.0,0.3262469]
[1752233225895,0.6819629,117760.0,117750.0,0.1594544]
[1752233226096,0.6859629,117760.0,117750.0,0.1594544]
[1752233226296,0.38287827,117760.0,117750.0,0.1594544]
[1752233226592,0.74756797,117760.0,117750.0,0.1594544]
[1752233226993,0.74756797,117760.0,117750.0,0.3292469]
[1752233227495,0.6869629,117760.0,117750.0,0.3292469]
[1752233227800,0.74752025,117760.0,117750.0,0.3292469]
[1752233228301,1.34776025,117760.0,117750.0,0.3292469]
[1752233229000,0.98407055,117760.0,117750.0,0.3292469]
[1752233229195,1.34776025,117760.0,117750.0,0.3292469]
[1752233229705,1.2872029,117760.0,117750.0,0.3292469]
[1752233229999,1.347757,117760.0,117750.0,0.3292469]
[1752233230901,1.2872029,117760.0,117750.0,0.3292469]
[1752233231100,1.34775834,117760.0,117750.0,0.3292469]
[1752233232911,0.9235132,117760.0,117750.0,0.3292469]
[1752233233206,0.9233932,117760.0,117750.0,0.3292469]
[1752233233400,0.9233532,117760.0,117750.0,0.3292469]
[1752233233597,0.9233532,117760.0,117750.0,0.6929366]
[1752233234608,0.3232732,117760.0,117750.0,0.3292469]
[1752233234801,0.9233532,117760.0,117750.0,0.3292469]
[1752233235108,0.3232732,117760.0,117750.0,0.3292469]
[1752233235407,0.9233132,117760.0,117750.0,0.3292469]
[1752233236106,0.34140573,117760.0,117750.0,0.3292469]
[1752233236303,0.6686,117760.0,117750.0,0.6929366]
[1752233236606,0.89895563,117760.0,117750.0,0.3302469]
[1752233237406,0.12917753,117760.0,117750.0,0.3302469]
[1752233237597,0.69743753,117760.0,117750.0,0.7265366]
[1752233238105,0.0369,117760.0,117750.0,0.7265366]
[1752233238299,0.005,117760.0,117750.0,0.7592366]
[1752233238496,0.005,117760.0,117750.0,1.3591966]
[1752233238696,0.005,117760.0,117750.0,1.38313254]
[1752233239207,0.005,117760.0,117750.0,1.3591966]
[1752233240907,0.005,117760.0,117750.0,1.5290446]
[1752233241300,0.005,117760.0,117750.0,1.7790446]
[1752233242703,0.002,117770.0,117760.0,0.1697783]
[1752233243014,0.002,117770.0,117760.0,0.596968]
[1752233243599,0.002,117770.0,117760.0,0.9606577]
[1752233243907,0.002,117770.0,117760.0,1.1304897]
[1752233244109,0.003,117770.0,117760.0,1.1304897]
[1752233244406,0.07810425,117790.0,117780.0,0.1697496]
[1752233244607,0.01752672,117790.0,117780.0,1.14930986]
[1752233244807,0.01752672,117790.0,117780.0,1.21280986]
[1752233245306,0.01752672,117790.0,117780.0,1.54206426]
[1752233245511,0.29798393,117810.0,117800.0,0.1697208]
[1752233245809,0.2374064,117810.0,117800.0,0.7694008]
[1752233246403,0.29798393,117810.0,117800.0,0.7694008]
[1752233246610,0.2374064,117810.0,117800.0,0.7694008]
[1752233247113,0.30603165,117810.0,117800.0,0.7694008]
[1752233247602,0.30603165,117810.0,117800.0,1.1340905]
[1752233247804,0.30603165,117810.0,117800.0,0.001]
[1752233248000,1.46466465,117810.0,117780.0,0.17560496]
[1752233248217,1.46466465,117810.0,117780.0,0.34535176]
[1752233248218,0.5334248,117790.0,117780.0,0.34535176]
[1752233248608,0.5655248,117790.0,117780.0,0.34535176]
[1752233248909,0.5655248,117790.0,117780.0,0.17560496]
[1752233249507,0.5655248,117790.0,117780.0,0.17760496]
[1752233249917,0.5655248,117790.0,117780.0,0.18060496]
[1752233251411,0.5969248,117790.0,117780.0,0.18060496]
[1752233254208,0.2332351,117790.0,117780.0,0.18060496]
[1752233254427,0.5969248,117790.0,117780.0,0.18060496]
[1752233256111,0.5969248,117790.0,117780.0,0.35035456]
[1752233256316,0.5969248,117790.0,117780.0,0.35135456]
[1752233257418,0.65750233,117790.0,117780.0,0.35135456]
[1752233257925,0.65750233,117790.0,117780.0,0.18160496]
[1752233258426,0.65750233,117790.0,117780.0,0.35135456]
[1752233258724,0.5969248,117790.0,117780.0,0.35135456]
[1752233259426,0.2332351,117790.0,117780.0,0.35135456]
[1752233259619,0.5969248,117790.0,117780.0,0.35135456]
[1752233264421,0.5969248,117790.0,117780.0,0.18160496]
[1752233264821,0.2332351,117790.0,117780.0,0.18160496]
[1752233265022,0.5969248,117790.0,117780.0,0.18160496]
[1752233265225,0.65750233,117790.0,117780.0,0.18160496]
[1752233267227,0.65750233,117790.0,117780.0,0.35135456]
[1752233269038,0.65750233,117790.0,117780.0,0.335204]
[1752233271936,0.5969248,117790.0,117780.0,0.335204]
[1752233273339,0.5979248,117790.0,117780.0,0.333204]
[1752233273634,0.5979248,117790.0,117780.0,0.331204]
[1752233274037,0.5969248,117790.0,117780.0,0.331204]
[1752233274239,0.5969248,117790.0,117780.0,0.332204]
[1752233277342,0.2332351,117790.0,117780.0,0.332204]
[1752233277639,0.3090964,117790.0,117780.0,0.332204]
[1752233277839,0.2332351,117790.0,117780.0,0.332204]
[1752233278444,0.3090964,117790.0,117780.0,0.332204]
[1752233278944,0.6727861,117790.0,117780.0,0.332204]
[1752233279341,0.65762995,117790.0,117780.0,0.332204]
[1752233281143,0.5969248,117790.0,117780.0,0.332204]
[1752233282547,0.65762995,117790.0,117780.0,0.332204]
[1752233284849,0.5969248,117790.0,117780.0,0.332204]
[1752233285953,0.6727861,117790.0,117780.0,0.332204]
[1752233289658,0.5969248,117790.0,117780.0,0.332204]
[1752233290557,0.2332351,117790.0,117780.0,0.332204]
[1752233290751,0.5969248,117790.0,117780.0,0.332204]
[1752233291056,0.67282029,117790.0,117780.0,0.332204]
[1752233291752,0.30913059,117790.0,117780.0,0.1624544]
[1752233291953,0.67282029,117790.0,117780.0,0.332204]
[1752233292355,0.67281651,117790.0,117780.0,0.332204]
[1752233292857,0.71812956,117790.0,117780.0,0.332204]
[1752233294457,0.71812956,117790.0,117780.0,0.74120675]
[1752233295060,0.71812956,117790.0,117780.0,0.332204]
[1752233295758,0.64223785,117790.0,117780.0,0.332204]
[1752233297861,0.2332351,117790.0,117780.0,0.332204]
[1752233298160,0.64223785,117790.0,117780.0,0.332204]
[1752233298464,0.74843197,117790.0,117780.0,0.332204]
[1752233299257,0.64223785,117790.0,117780.0,0.332204]
[1752233299562,0.71813724,117790.0,117780.0,0.332204]
[1752233300562,0.64223785,117790.0,117780.0,0.332204]
[1752233300958,0.71813896,117790.0,117780.0,0.332204]
[1752233302064,0.64223785,117790.0,117780.0,0.332204]
[1752233303963,0.2332351,117790.0,117780.0,0.332204]
[1752233304164,0.64223785,117790.0,117780.0,0.332204]
[1752233304764,0.71813896,117790.0,117780.0,0.332204]
[1752233305165,0.64223785,117790.0,117780.0,0.332204]
[1752233305362,0.2332351,117790.0,117780.0,0.332204]
[1752233305565,0.64223785,117790.0,117780.0,0.332204]
[1752233307670,0.2332351,117790.0,117780.0,0.332204]
[1752233307869,0.64223785,117790.0,117780.0,0.332204]
[1752233312170,0.70298155,117790.0,117780.0,0.332204]
[1752233314976,1.29694171,117790.0,117780.0,0.1554543]
[1752233315176,1.2210406,117790.0,117780.0,0.1055543]
[1752233315373,1.32723472,117790.0,117780.0,0.1055543]
[1752233316272,1.2210406,117790.0,117780.0,0.03132261]
[1752233316474,1.32723689,117790.0,117780.0,0.03132261]
[1752233316669,1.15743689,117790.0,117780.0,0.03132261]
[1752233316979,0.70313071,117790.0,117780.0,0.03132261]
[1752233321282,0.33943139,117790.0,117780.0,0.03132261]
[1752233321482,0.70313071,117790.0,117780.0,0.03132261]
[1752233321671,0.33943139,117790.0,117780.0,0.03132261]
[1752233321873,0.70313071,117790.0,117780.0,0.03132261]
[1752233322074,0.59693442,117790.0,117780.0,0.03132261]
[1752233323184,0.67268819,117790.0,117780.0,0.03132261]
[1752233324587,0.59693442,117790.0,117780.0,0.03132261]
[1752233325682,0.65751839,117790.0,117780.0,0.00903011]
[1752233327683,0.67266438,117790.0,117780.0,0.00903011]
[1752233328280,0.30896506,117790.0,117780.0,0.00903011]
[1752233328488,0.67266438,117790.0,117780.0,0.00903011]
[1752233329178,0.59693442,117790.0,117780.0,0.00903011]
[1752233330588,0.70293544,117790.0,117780.0,0.00903011]
[1752233331388,0.59693442,117790.0,117780.0,0.00903011]
[1752233331790,0.70293633,117790.0,117780.0,0.00903011]
[1752233331993,0.1697513,117780.0,117770.0,0.00835]
[1752233332291,1.30117253,117780.0,117770.0,0.00835]
[1752233332990,1.30117253,117780.0,117770.0,0.00935]
[1752233333188,1.30117253,117780.0,117770.0,0.01135]
[1752233334993,1.30117253,117780.0,117770.0,0.1708044]
[1752233336395,1.37686858,117780.0,117770.0,0.1708044]
[1752233336590,1.37686858,117780.0,117770.0,0.1624544]
[1752233336790,1.27086667,117780.0,117770.0,0.1624544]
[1752233337787,0.90716735,117780.0,117770.0,0.1624544]
[1752233337988,1.27086667,117780.0,117770.0,0.1624544]
[1752233338791,1.72549639,117780.0,117770.0,0.1624544]
[1752233339800,1.64980034,117780.0,117770.0,0.1624544]
[1752233339999,1.72549639,117780.0,117770.0,0.1624544]
[1752233340300,1.72549639,117780.0,117770.0,0.1708044]
[1752233340491,1.72549639,117780.0,117770.0,0.2033044]
[1752233342093,1.72549639,117780.0,117770.0,0.2013044]
[1752233342292,1.72649639,117780.0,117770.0,0.2003044]
[1752233343595,0.90816735,117780.0,117770.0,0.2003044]
[1752233343802,1.72649639,117780.0,117770.0,0.2003044]
[1752233343993,1.72549639,117780.0,117770.0,0.2003044]
[1752233344201,0.24644735,117780.0,117770.0,0.60946892]
[1752233344389,0.1707513,117780.0,117770.0,0.81123462]
[1752233344594,0.8296348,117780.0,117770.0,0.81123462]
[1752233344799,1.23879932,117780.0,117770.0,0.81123462]
[1752233345200,0.8296348,117780.0,117770.0,0.81123462]
[1752233345398,1.23879932,117780.0,117770.0,0.81123462]
[1752233345897,0.8296348,117780.0,117770.0,0.4020701]
[1752233346198,1.25381187,117780.0,117770.0,0.81123462]
[1752233346798,0.84464735,117780.0,117770.0,0.81123462]
[1752233347097,0.24644735,117780.0,117770.0,0.81123462]
[1752233347297,1.25377187,117780.0,117770.0,0.81123462]
[1752233347492,1.25377187,117780.0,117770.0,0.81223462]
[1752233347693,0.65561187,117780.0,117770.0,0.81223462]
[1752233347895,0.07669605,117780.0,117770.0,0.81223462]
[1752233348102,0.65980274,117780.0,117770.0,0.81223462]
[1752233348308,0.65880274,117780.0,117770.0,0.81223462]
[1752233348601,0.82855404,117780.0,117770.0,0.81423462]
[1752233348798,0.23043404,117780.0,117770.0,0.81423462]
[1752233348996,0.82854337,117780.0,117770.0,0.81423462]
[1752233349901,0.82850337,117780.0,117770.0,0.81423462]
[1752233350197,0.23042337,117780.0,117770.0,0.81423462]
[1752233350501,0.82850337,117780.0,117770.0,0.4050701]
[1752233350704,0.82850337,117780.0,117770.0,0.81423462]
[1752233350895,0.82850337,117780.0,117770.0,0.76857148]
[1752233351097,0.7678313,117780.0,117770.0,0.76857148]
[1752233351692,0.1697513,117780.0,117770.0,0.76857148]
[1752233351893,0.06067207,117790.0,117780.0,0.1697513]
[1752233352094,0.88899434,117800.0,117790.0,0.1697369]
[1752233352301,0.93142614,117800.0,117790.0,0.59663828]
[1752233352900,0.93138614,117800.0,117790.0,0.59663828]
[1752233353101,0.93238614,117800.0,117790.0,0.59663828]
[1752233353604,0.93238614,117800.0,117790.0,0.2321369]
[1752233353903,0.93234614,117800.0,117790.0,0.2321369]
[1752233354100,0.87167407,117800.0,117790.0,0.2321369]
[1752233354405,0.87367407,117800.0,117790.0,0.2321369]
[1752233355302,0.87367407,117800.0,117790.0,0.3915913]
[1752233356103,0.87367407,117800.0,117790.0,0.3925913]
[1752233359005,0.87367407,117800.0,117790.0,0.75609268]
[1752233359803,0.93434614,117800.0,117790.0,0.75609268]
[1752233360005,0.89179434,117800.0,117790.0,0.75609268]
[1752233360202,0.84936284,117800.0,117790.0,0.75609268]
[1752233360403,0.78869077,117800.0,117790.0,0.75609268]
[1752233361106,0.02108707,117800.0,117790.0,0.75609268]
[1752233361306,0.78864957,117800.0,117790.0,0.75609268]
[1752233362005,0.19080957,117800.0,117790.0,0.75609268]
[1752233362202,0.78860957,117800.0,117790.0,0.75609268]
[1752233362606,0.19080957,117800.0,117790.0,0.75609268]
[1752233362802,0.78860957,117800.0,117790.0,0.75609268]
[1752233364107,0.19080957,117800.0,117790.0,0.75609268]
[1752233364308,0.61888707,117800.0,117790.0,0.75609268]
[1752233364514,0.02108707,117800.0,117790.0,0.75609268]
[1752233364705,0.003,117800.0,117790.0,1.60385268]
[1752233365005,0.003,117800.0,117790.0,1.78991323]
[1752233365198,0.003,117800.0,117790.0,1.53991323]
[1752233365402,0.003,117800.0,117790.0,1.78991323]
[1752233366410,0.003,117800.0,117790.0,1.53991323]
[1752233372608,0.002,117810.0,117800.0,0.1697225]
[1752233372815,0.002,117810.0,117800.0,0.96212526]
[1752233373313,0.002,117810.0,117800.0,0.97046526]
[1752233373508,0.002,117810.0,117800.0,0.60696388]
[1752233373716,0.002,117810.0,117800.0,0.2434625]
[1752233373908,0.002,117810.0,117800.0,0.60696388]
[1752233374314,0.002,117810.0,117800.0,0.2434625]
[1752233374513,0.002,117810.0,117800.0,1.20448388]
[1752233374715,0.006,117810.0,117800.0,1.20448388]
[1752233374908,0.006,117810.0,117800.0,1.56798526]
[1752233375308,0.006,117810.0,117800.0,1.72743966]
[1752233375616,0.33310202,117840.0,117830.0,0.1696792]
[1752233375813,0.29351015,117840.0,117830.0,0.1696792]
[1752233376723,0.2331801,117840.0,117830.0,0.53318058]
[1752233377017,0.30153019,117840.0,117830.0,0.1696792]
[1752233377610,0.31012974,117840.0,117830.0,0.1696792]
[1752233377812,0.31412974,117840.0,117830.0,0.1706792]
[1752233378214,0.32012974,117840.0,117830.0,0.1706792]
[1752233378612,0.31712974,117840.0,117830.0,0.1696792]
[1752233378814,0.37780181,117840.0,117830.0,0.1696792]
[1752233379016,0.37780181,117840.0,117830.0,0.15587889]
[1752233379218,0.20312171,117840.0,117830.0,0.51938027]
[1752233379414,0.16272216,117840.0,117830.0,0.55018027]
[1752233379613,0.17774614,117840.0,117830.0,0.55018027]
[1752233380012,0.17774614,117840.0,117830.0,0.21737889]
[1752233380215,0.10205009,117840.0,117830.0,0.58088027]
[1752233380516,0.1625824,117840.0,117830.0,0.74033467]
[1752233381017,0.10205009,117840.0,117830.0,0.74033467]
[1752233381712,0.10205009,117840.0,117830.0,0.31533329]
[1752233381908,0.73702059,117840.0,117830.0,0.31533329]
[1752233382317,0.72764858,117840.0,117830.0,0.31533329]
[1752233382516,0.3641472,117840.0,117830.0,0.31633329]
[1752233382921,0.66611627,117840.0,117830.0,0.31733329]
[1752233384209,0.72664858,117840.0,117830.0,0.31733329]
[1752233384415,0.3631472,117840.0,117830.0,0.31733329]
[1752233384813,0.72664858,117840.0,117830.0,0.1614544]
[1752233385113,1.33909232,117840.0,117830.0,0.1614544]
[1752233386009,1.34762704,117840.0,117830.0,0.1614544]
[1752233387714,1.71112842,117840.0,117830.0,0.1614544]
[1752233387922,2.13085642,117840.0,117830.0,0.1212618]
[1752233388122,2.05516037,117840.0,117830.0,0.1212618]
[1752233388322,2.16116228,117840.0,117830.0,0.1212618]
[1752233389322,2.16116228,117840.0,117830.0,0.0925653]
[1752233389521,0.1697081,117810.0,117800.0,0.01003772]
[1752233389723,1.28448026,117810.0,117800.0,0.01003772]
[1752233389922,1.27321636,117810.0,117800.0,0.01003772]
[1752233390925,1.21268524,117810.0,117800.0,0.01003772]
[1752233391121,0.84918386,117810.0,117800.0,0.01503772]
[1752233391318,0.84918386,117810.0,117800.0,0.18476022]
[1752233391522,1.21268524,117810.0,117800.0,0.01503772]
[1752233392720,1.21268524,117810.0,117800.0,0.17449212]
[1752233393114,1.21368524,117810.0,117800.0,0.17849212]
[1752233393518,1.21368524,117810.0,117800.0,0.34821462]
[1752233396525,1.27421636,117810.0,117800.0,0.34821462]
[1752233396725,1.27421636,117810.0,117800.0,0.17849212]
[1752233398329,0.67697636,117810.0,117800.0,0.17849212]
[1752233398530,1.27925636,117810.0,117800.0,0.17849212]
[1752233399928,0.67697636,117810.0,117800.0,0.17849212]
[1752233400129,1.27893636,117810.0,117800.0,0.17849212]
[1752233403330,0.91543498,117810.0,117800.0,0.17849212]
[1752233403529,1.27893636,117810.0,117800.0,0.17849212]
[1752233404029,0.91543498,117810.0,117800.0,0.17849212]
[1752233404330,1.27893636,117810.0,117800.0,0.17849212]
[1752233405524,0.67697636,117810.0,117800.0,0.17849212]
[1752233405725,1.28045636,117810.0,117800.0,0.17849212]
[1752233406831,0.67697636,117810.0,117800.0,0.17849212]
[1752233407029,1.28045636,117810.0,117800.0,0.17849212]
[1752233409539,0.91695498,117810.0,117800.0,0.17015212]
[1752233409734,1.28045636,117810.0,117800.0,0.17015212]
[1752233411038,0.91695498,117810.0,117800.0,0.17015212]
[1752233411237,1.28045636,117810.0,117800.0,0.17015212]
[1752233413039,0.67697636,117810.0,117800.0,0.17015212]
[1752233413235,0.85706386,117810.0,117800.0,0.17015212]
[1752233413435,1.22056524,117810.0,117800.0,0.17015212]
[1752233413637,0.61644524,117810.0,117800.0,0.17015212]
[1752233413934,0.67701551,117810.0,117800.0,0.33987452]
[1752233414140,0.82472386,117810.0,117800.0,0.33987452]
[1752233414335,0.82472386,117810.0,117800.0,0.40267452]
[1752233415939,0.90038776,117810.0,117800.0,0.40267452]
[1752233416143,0.90038776,117810.0,117800.0,0.23295212]
[1752233416336,1.26388914,117810.0,117800.0,0.23295212]
[1752233417341,1.26388914,117810.0,117800.0,0.40267462]
[1752233417745,0.90038776,117810.0,117800.0,0.40267462]
[1752233417942,0.82472386,117810.0,117800.0,0.40267462]
[1752233420145,0.22064386,117810.0,117800.0,0.40267462]
[1752233420342,0.22064386,117810.0,117800.0,0.766176]
[1752233420343,0.07957332,117810.0,117800.0,0.766176]
[1752233420536,0.62243576,117810.0,117800.0,0.766176]
[1752233420738,0.01883576,117810.0,117800.0,0.766176]
[1752233420949,0.62247576,117810.0,117800.0,0.766176]
[1752233421146,0.62247576,117810.0,117800.0,0.40267462]
[1752233421347,0.62247576,117810.0,117800.0,0.766176]
[1752233421542,0.18854386,117810.0,117800.0,0.766176]
[1752233421747,0.79202386,117810.0,117800.0,0.766176]
[1752233421942,0.18854386,117810.0,117800.0,0.766176]
[1752233422342,0.79178386,117810.0,117800.0,0.766176]
[1752233423051,0.85252142,117810.0,117800.0,0.766176]
[1752233423547,0.07957332,117810.0,117800.0,1.12967738]
[1752233423950,0.07957332,117810.0,117800.0,0.766176]
[1752233425051,0.1605078,117830.0,117800.0,1.54945337]
[1752233425258,0.9331982,117830.0,117820.0,0.53319518]
[1752233425552,0.8575343,117830.0,117820.0,0.53319518]
[1752233425744,0.8575343,117830.0,117820.0,0.59799518]
[1752233426254,0.9331982,117830.0,117820.0,0.2344938]
[1752233426753,0.8575343,117830.0,117820.0,0.2344938]
[1752233427656,0.2545343,117830.0,117820.0,0.59799518]
[1752233427847,0.16181186,117840.0,117830.0,0.1696794]
[1752233428046,0.76433186,117840.0,117830.0,0.59748078]
[1752233428246,0.01779787,117840.0,117830.0,0.59748078]
[1752233428649,0.0776639,117850.0,117840.0,0.169665]
[1752233428855,0.0776639,117850.0,117840.0,1.56340776]
[1752233429055,0.002,117850.0,117840.0,1.73311976]
[1752233429454,0.002,117850.0,117840.0,1.74166459]
[1752233429757,0.002,117850.0,117840.0,1.57195259]
[1752233429948,0.002,117850.0,117840.0,1.20845121]
[1752233430148,0.53515198,117850.0,117840.0,0.17675286]
[1752233430348,1.16993198,117850.0,117840.0,0.1604544]
[1752233430655,1.27809588,117850.0,117840.0,0.1604544]
[1752233430858,1.30836144,117850.0,117840.0,0.1604544]
[1752233431460,1.30836144,117850.0,117840.0,0.1594544]
[1752233431664,1.30835463,117850.0,117840.0,0.1614544]
[1752233431961,1.30835463,117850.0,117840.0,0.05620289]
[1752233432163,1.20243198,117850.0,117840.0,0.05620289]
[1752233432556,1.37214398,117850.0,117840.0,0.05620289]
[1752233432757,0.1696794,117830.0,117820.0,0.01587902]
[1752233432963,1.22849493,117830.0,117820.0,0.01587902]
[1752233433262,1.25999493,117830.0,117820.0,0.01587902]
[1752233433457,0.1696938,117820.0,117810.0,0.2545609]
[1752233433664,0.56469518,117820.0,117810.0,0.2545609]
[1752233434560,0.56469518,117820.0,117810.0,0.1697076]
[1752233435263,0.62522471,117820.0,117810.0,0.1697076]
[1752233435451,0.12065053,117830.0,117810.0,0.36350138]
[1752233435651,0.0177002,117830.0,117820.0,0.56369518]
[1752233435858,0.8987669,117840.0,117820.0,0.42520138]
[1752233436158,0.1877489,117830.0,117820.0,0.22838576]
[1752233436363,0.1877489,117830.0,117820.0,0.25888576]
[1752233436563,0.2179489,117830.0,117820.0,0.25888576]
[1752233436752,0.2179489,117830.0,117820.0,0.2426062]
[1752233437360,0.2179489,117830.0,117820.0,0.2743062]
[1752233438352,0.28571,117840.0,117830.0,0.1696793]
[1752233438558,0.28571,117840.0,117830.0,0.032]
[1752233438559,0.8448507,117840.0,117830.0,0.032]
[1752233438762,0.93778023,117840.0,117830.0,0.032]
[1752233438960,1.30128161,117840.0,117830.0,0.032]
[1752233439158,1.30128161,117840.0,117830.0,0.2016793]
[1752233439357,0.8772507,117840.0,117830.0,0.2016793]
[1752233439563,0.8782507,117840.0,117830.0,0.2016793]
[1752233440065,0.2766907,117840.0,117830.0,0.2016793]
[1752233440266,0.8792907,117840.0,117830.0,0.2016793]
[1752233440461,1.24279208,117840.0,117830.0,0.032]
[1752233441762,1.24279208,117840.0,117830.0,0.2016793]
[1752233442764,0.8792907,117840.0,117830.0,0.2016793]
[1752233442966,1.24279208,117840.0,117830.0,0.2016793]
[1752233443364,1.24279208,117840.0,117830.0,0.032]
[1752233444063,1.24279208,117840.0,117830.0,0.201681]
[1752233444265,1.24279208,117840.0,117830.0,0.032]
[1752233444460,1.24279208,117840.0,117830.0,0.201681]
[1752233445062,0.64119208,117840.0,117830.0,0.201681]
[1752233445261,1.24211208,117840.0,117830.0,0.201681]
[1752233446667,1.30264161,117840.0,117830.0,0.032]
[1752233446865,1.30264161,117840.0,117800.0,1.0176183]
[1752233446866,0.1697098,117810.0,117800.0,0.17976622]
[1752233447058,1.13401118,117810.0,117800.0,0.01004772]
[1752233447369,1.19901118,117810.0,117800.0,0.01004772]